bitfinex/quotes_SOLUSD_20260314
["timestamp","ask_amount","ask_price","bid_price","bid_amount"]
[1773510630237,0.4702529,86.917,86.893,0.45887377]
[1773510631029,0.4702529,86.915,86.893,0.45887377]
[1773510632442,11.50562625,86.914,86.893,0.45887377]
[1773510634443,0.4702529,86.915,86.893,0.45887377]
[1773510635528,0.4702529,86.913,86.893,0.45887377]
[1773510638642,11.50562625,86.914,86.893,0.45887377]
[1773510639347,0.4702529,86.913,86.893,0.45887377]
[1773510640945,0.4702529,86.911,86.89,0.2]
[1773510641851,0.4702529,86.911,86.891,0.45887377]
[1773510642246,0.4702529,86.911,86.881,0.45887377]
[1773510642546,0.4702529,86.909,86.881,0.45887377]
[1773510643140,0.4702529,86.907,86.881,0.45887377]
[1773510645352,11.97693828,86.906,86.881,0.45887377]
[1773510646050,0.4702529,86.905,86.881,0.45887377]
[1773510647540,0.4702529,86.903,86.881,0.45887377]
[1773510651179,7.34,86.918,86.882,0.45407305]
[1773510651358,3.75201688,86.92,86.882,0.45407305]
[1773510652158,40.26644883,86.921,86.882,0.45407305]
[1773510653261,0.49066682,86.918,86.884,0.48973866]
[1773510653559,0.49066682,86.918,86.891,0.48973866]
[1773510660855,11.50522912,86.917,86.901,0.48973866]
[1773510661058,0.49066682,86.923,86.901,0.48973866]
[1773510665766,11.50456731,86.922,86.901,0.48973866]
[1773510666867,0.49066682,86.929,86.911,0.48973866]
[1773510667171,0.49066682,86.929,86.901,0.48973866]
[1773510668454,11.50377323,86.928,86.901,0.48973866]
[1773510668655,0.49066682,86.927,86.901,0.48973866]
[1773510669957,0.49066682,86.919,86.883,7.34]
[1773510670159,0.49066682,86.919,86.82,6.2]
[1773510670160,0.49066682,86.909,86.881,0.48973866]
[1773510670358,0.49066682,86.923,86.901,0.48973866]
[1773510670563,0.49066682,86.925,86.901,0.48973866]
[1773510672071,0.49066682,86.923,86.901,0.48973866]
[1773510675481,0.49066682,86.927,86.901,0.48973866]
[1773510677479,11.50403791,86.926,86.901,0.48973866]
[1773510677980,11.50403791,86.926,86.903,0.48973866]
[1773510679677,0.49066682,86.926,86.903,0.48973866]
[1773510683488,11.99474898,86.926,86.903,0.48973866]
[1773510683688,11.99474898,86.926,86.905,0.49187861]
[1773510685486,0.48452837,86.925,86.905,0.49187861]
[1773510686973,11.5043026,86.924,86.904,11.50695019]
[1773510687274,0.48452837,86.923,86.904,11.50695019]
[1773510689091,0.48452837,86.923,86.903,0.49187861]
[1773510703002,0.48452837,86.921,86.903,0.49187861]
[1773510705914,0.48452837,86.923,86.899,0.49187861]
[1773510707505,11.50456731,86.922,86.899,0.49187861]
[1773510707702,0.48452837,86.921,86.899,0.49187861]
[1773510710308,11.50483202,86.92,86.899,0.49187861]
[1773510710515,0.45542664,86.919,86.899,0.49187861]
[1773510713319,0.45889142,86.909,86.88,0.2]
[1773510713490,3.75272933,86.9,86.88,0.2]
[1773510713698,0.45889142,86.899,86.88,0.2]
[1773510715199,0.45889142,86.898,86.88,0.2]
[1773510716605,0.45889142,86.898,86.88,0.68066264]
[1773510716808,0.45889142,86.898,86.881,0.48066264]
[1773510720408,0.45889142,86.896,86.881,0.48066264]
[1773510720601,0.45889142,86.896,86.88,0.2]
[1773510722917,0.45889142,86.896,86.88,0.68066264]
[1773510727230,0.45889142,86.909,86.881,0.48066264]
[1773510727431,7.34,86.912,86.881,0.48066264]
[1773510727432,0.45889142,86.906,86.882,0.48066264]
[1773510729826,0.45889142,86.91,86.884,0.48066264]
[1773510731626,0.45889142,86.91,86.886,0.48066264]
[1773510735731,0.45889142,86.914,86.888,0.48066264]
[1773510736135,0.45889142,86.914,86.887,11.5092016]
[1773510736136,0.45889142,86.914,86.891,0.48066264]
[1773510737619,0.45889142,86.914,86.891,11.98933177]
[1773510737821,11.50575863,86.913,86.892,0.48066264]
[1773510741130,0.45889142,86.913,86.892,0.48066264]
[1773510741734,0.48081839,86.909,86.892,0.48066264]
[1773510743934,11.50642058,86.908,86.892,0.48066264]
[1773510744139,0.48081839,86.907,86.892,0.48066264]
[1773510747728,0.48081839,86.909,86.892,0.48066264]
[1773510750526,0.48081839,86.927,86.894,0.4572236]
[1773510750733,0.48081839,86.919,86.894,0.4572236]
[1773510758552,0.48081839,86.909,86.885,0.4572236]
[1773510758757,0.48081839,86.909,86.88,12.16729346]
[1773510759061,0.48081839,86.909,86.881,0.4572236]
[1773510762955,3.75581106,86.91,86.872,7.34]
[1773510762956,0.48081839,86.899,86.872,7.34]
[1773510763159,0.48081839,86.889,86.87,0.2]
[1773510764463,0.48081839,86.887,86.87,0.2]
[1773510765959,0.48081839,86.885,86.87,0.2]
[1773510768358,11.509599,86.884,86.87,0.2]
[1773510768664,11.99041739,86.884,86.87,0.2]
[1773510768864,0.48081839,86.883,86.87,0.2]
[1773510771050,0.48081839,86.883,86.87,0.69306167]
[1773510773264,11.50986395,86.882,86.87,0.69306167]
[1773510774366,11.50986395,86.882,86.87,0.2]
[1773510774669,11.50986395,86.882,86.871,0.48135561]
[1773510775470,11.50933406,86.886,86.871,0.48135561]
[1773510796692,12.00613458,86.886,86.871,0.48135561]
[1773510798808,11.509599,86.884,86.871,0.48135561]
[1773510805006,0.48333546,86.886,86.854,11.51356062]
[1773510805300,0.48333546,86.886,86.861,11.51264664]
[1773510807106,11.50946653,86.885,86.862,0.45619855]
[1773510810307,0.48333546,86.885,86.862,0.45619855]
[1773510810988,0.48333546,86.885,86.861,0.45619855]
[1773510814406,0.48333546,86.885,86.86,11.71268865]
[1773510814407,11.99281524,86.885,86.863,0.45619855]
[1773510815510,0.48333546,86.884,86.863,0.45619855]
[1773510827611,3.75719272,86.89,86.865,0.45619855]
[1773510827612,0.48333546,86.889,86.865,0.45619855]
[1773510828515,0.48333546,86.889,86.866,11.51198397]
[1773510828711,0.48333546,86.887,86.867,0.45619855]
[1773510830512,0.48333546,86.887,86.869,0.46953691]
[1773510844729,0.48333546,86.887,86.87,11.51145389]
[1773510844918,0.48333546,86.887,86.871,0.45834132]
[1773510877899,0.48965238,86.892,86.872,0.47330419]
[1773510878098,0.48965238,86.899,86.872,0.47330419]
[1773510884498,11.50774471,86.898,86.872,0.47330419]
[1773510884800,0.48965238,86.897,86.872,0.47330419]
[1773510886998,11.50800957,86.896,86.872,0.47330419]
[1773510887209,0.48965238,86.889,86.872,0.47330419]
[1773510890500,0.47844103,86.888,86.872,0.47330419]
[1773510890685,0.47844103,86.888,86.868,0.47817695]
[1773510890880,0.47844103,86.888,86.867,11.51182103]
[1773510892393,0.47844103,86.888,86.867,0.47108519]
[1773510894009,0.49869754,86.886,86.867,0.47108519]
[1773510894798,0.49869754,86.884,86.861,11.51264664]
[1773510896910,0.49869754,86.882,86.862,0.47108519]
[1773510898309,0.49869754,86.882,86.85,3.95677015]
[1773510898310,3.75677015,86.88,86.856,11.51319128]
[1773510898510,0.49869754,86.879,86.856,11.51319128]
[1773510899213,0.49869754,86.879,86.856,11.98427647]
[1773510899402,0.49869754,86.877,86.857,0.47108519]
[1773510899601,0.49869754,86.877,86.851,0.47108519]
[1773510901407,0.49869754,86.875,86.851,0.47108519]
[1773510904812,3.75677015,86.88,86.85,0.2]
[1773510904813,0.49869754,86.869,86.85,0.2]
[1773510905012,0.49869754,86.859,86.83,0.2]
[1773510905221,0.49869754,86.849,86.83,0.2]
[1773510905619,0.49869754,86.849,86.83,0.67108519]
[1773510905821,0.49869754,86.849,86.83,0.2]
[1773510906123,0.49869754,86.849,86.831,11.98770943]
[1773510906422,0.49869754,86.849,86.832,0.47108519]
[1773510910927,0.49869754,86.849,86.83,0.2]
[1773510911317,0.49869754,86.849,86.83,0.67108519]
[1773510911509,0.49869754,86.849,86.831,0.47108519]
[1773510914915,0.49869754,86.849,86.832,0.47108519]
[1773510915612,11.51292775,86.859,86.833,0.47108519]
[1773510916838,11.51158641,86.869,86.834,11.51622636]
[1773510917037,11.51158641,86.869,86.835,0.47108519]
[1773510917731,0.49869754,86.868,86.835,0.47108519]
[1773510918233,0.49869754,86.866,86.837,0.47108519]
[1773510918736,0.49869754,86.866,86.841,0.47108519]
[1773510921744,0.49772499,86.864,86.841,0.47108519]
[1773510925455,0.49772499,86.862,86.841,0.47108519]
[1773510927341,13.48117691,86.897,86.852,0.48436086]
[1773510927342,28.77368124,86.885,86.852,0.48436086]
[1773510927546,0.49772499,86.889,86.861,0.48436086]
[1773510929043,0.49772499,86.887,86.863,0.48436086]
[1773510929548,11.50906914,86.888,86.863,0.48436086]
[1773510930242,12.00679413,86.888,86.863,0.48436086]
[1773510931646,0.49772499,86.893,86.865,0.48436086]
[1773510932849,0.49772499,86.891,86.865,0.48436086]
[1773510935732,11.50880423,86.89,86.865,0.48436086]
[1773510935933,12.00652922,86.89,86.865,0.48436086]
[1773510936348,0.49772499,86.889,86.865,0.48436086]
[1773510940465,11.50906914,86.888,86.865,0.48436086]
[1773510941053,0.49772499,86.888,86.867,0.48436086]
[1773510946461,11.5092016,86.887,86.867,0.48436086]
[1773510947161,0.49772499,86.886,86.867,0.48436086]
[1773510953268,11.50761228,86.899,86.871,0.45079076]
[1773510955375,11.50761228,86.899,86.873,0.45079076]
[1773510956570,11.50761228,86.899,86.875,0.45079076]
[1773510957671,0.47357363,86.91,86.881,0.45079076]
[1773510957857,11.50628818,86.909,86.881,0.45079076]
[1773510958763,11.50628818,86.909,86.883,0.45079076]
[1773510959157,11.97986181,86.909,86.883,0.45079076]
[1773510959480,11.50628818,86.909,86.883,0.45079076]
[1773510960272,11.97986181,86.909,86.883,0.45079076]
[1773510960958,0.47357363,86.908,86.883,0.45079076]
[1773510961274,0.47357363,86.918,86.885,0.45079076]
[1773510961464,3.49,88.221,86.884,11.509599]
[1773510961465,0.47357363,86.924,86.901,0.45079076]
[1773510962578,0.47357363,86.922,86.901,0.45079076]
[1773510965570,11.9774792,86.927,86.901,0.45079076]
[1773510965760,11.50390557,86.927,86.901,0.45079076]
[1773510966160,0.47357363,86.926,86.901,0.45079076]
[1773510968076,0.47357363,86.924,86.901,0.45079076]
[1773510970370,11.50443495,86.923,86.901,0.45079076]
[1773510971180,11.97800858,86.923,86.901,0.45079076]
[1773510971865,11.97800858,86.923,86.902,11.50721502]
[1773510972066,11.97800858,86.923,86.903,0.45079076]
[1773510972683,0.47357363,86.922,86.903,0.45079076]
[1773510975692,0.47357363,86.922,86.905,0.45079076]
[1773510976194,0.47357363,86.927,86.905,0.45079076]
[1773510977975,7.32345779,86.928,86.911,0.45079076]
[1773510978672,0.47357363,86.927,86.911,0.45079076]
[1773510994392,7.32345779,86.928,86.912,11.50589101]
[1773510994600,7.32345779,86.928,86.913,0.49954848]
[1773511001604,7.32345779,86.928,86.915,0.49954848]
[1773511005015,7.34,86.949,86.922,0.49954848]
[1773511005201,11.9611888,86.948,86.922,0.49954848]
[1773511005400,0.46000463,86.947,86.922,0.49954848]
[1773511006594,0.46000463,86.945,86.924,0.49954848]
[1773511009903,0.46000463,86.943,86.919,0.49954848]
[1773511010215,0.46000463,86.943,86.914,0.49954848]
[1773511012600,0.46000463,86.943,86.921,0.47486223]
[1773511013805,0.46000463,86.943,86.922,11.50456731]
[1773511014117,0.46000463,86.943,86.923,0.47486223]
[1773511017305,0.46000463,86.943,86.91,3.75321845]
[1773511017306,0.49537004,86.941,86.919,0.47486223]
[1773511017724,0.49537004,86.941,86.918,11.5050504]
[1773511019631,0.49537004,86.939,86.918,0.47486223]
[1773511022311,0.49537004,86.939,86.919,0.47486223]
[1773511029040,0.49537004,86.939,86.918,11.50498014]
[1773511029041,0.49537004,86.939,86.921,0.47486223]
[1773511032642,0.49537004,86.937,86.911,0.47486223]
[1773511034722,0.49537004,86.937,86.912,11.50589101]
[1773511035934,0.49537004,86.935,86.907,11.50652579]
[1773511036127,0.49537004,86.935,86.907,11.98138802]
[1773511036327,0.49537004,86.935,86.908,0.47486223]
[1773511037233,0.49537004,86.935,86.9,3.75172119]
[1773511037234,0.49537004,86.933,86.909,11.98115041]
[1773511037543,0.49537004,86.933,86.91,0.47486223]
[1773511038328,0.49537004,86.933,86.911,11.98088563]
[1773511039645,0.49537004,86.933,86.912,0.47486223]
[1773511045148,0.49537004,86.933,86.914,0.48771185]
[1773511072188,28.7533521,86.947,86.914,0.48771185]
[1773511072189,0.49776867,86.931,86.914,0.48771185]
[1773511073669,0.49776867,86.931,86.913,11.50575863]
[1773511073670,0.49776867,86.931,86.916,0.45090522]
[1773511079181,0.49776867,86.931,86.918,0.45090522]
[1773511083195,0.49776867,86.939,86.92,0.45090522]
[1773511083495,0.49776867,86.939,86.919,11.50496439]
[1773511086096,0.49776867,86.937,86.919,0.45090522]
[1773511096999,0.49776867,86.935,86.919,0.45090522]
[1773511102206,0.46175195,86.939,86.92,0.47517994]
[1773511104214,11.96420197,86.938,86.92,0.47517994]
[1773511104415,0.46175195,86.937,86.92,0.47517994]
[1773511106130,0.46175195,86.941,86.922,0.47517994]
[1773511106813,3.75256227,86.94,86.922,0.47517994]
[1773511107020,0.46175195,86.939,86.922,0.47517994]
[1773511107829,0.46175195,86.938,86.922,0.47517994]
[1773511110328,11.50258232,86.937,86.912,11.50586108]
[1773511110515,0.46175195,86.919,86.877,0.47517994]
[1773511110715,3.75256227,86.91,86.881,0.47517994]
[1773511111725,3.75256227,86.92,86.881,0.47517994]
[1773511112732,0.08865655,86.918,86.883,0.47517994]
[1773511114135,0.08865655,86.918,86.884,11.509599]
[1773511114318,0.08865655,86.918,86.885,0.47517994]
[1773511115912,0.08865655,86.918,86.887,0.47517994]
[1773511119034,0.08865655,86.918,86.889,0.47517994]
[1773511121936,0.08865655,86.918,86.89,11.50880423]
[1773511122133,0.08865655,86.918,86.891,0.47517994]
[1773511125819,0.08865655,86.918,86.893,0.47517994]
[1773511132947,0.08865655,86.923,86.895,0.45567172]
[1773511133629,3.75256227,86.92,86.895,0.45567172]
[1773511133832,0.08865655,86.919,86.895,0.45567172]
[1773511135251,11.59362094,86.919,86.895,0.45567172]
[1773511135426,11.59362094,86.919,86.897,0.45567172]
[1773511140449,11.50496439,86.919,86.897,0.45567172]
[1773511140653,0.08865655,86.923,86.897,0.45567172]
[1773511141038,0.08865655,86.919,86.897,0.45567172]
[1773511142450,11.59362094,86.919,86.897,0.45567172]
[1773511142949,0.08865655,86.918,86.897,0.45567172]
[1773511144357,0.08865655,86.922,86.898,11.50774471]
[1773511144654,0.08865655,86.922,86.899,0.45567172]
[1773511152645,0.08865655,86.922,86.9,11.50747986]
[1773511152953,0.08865655,86.922,86.901,0.45567172]
[1773511154763,0.08865655,86.922,86.903,0.45567172]
[1773511155258,11.5043026,86.924,86.903,0.45567172]
[1773511158570,11.59295915,86.924,86.903,0.45567172]
[1773511158972,0.08865655,86.923,86.903,0.45567172]
[1773511164691,3.7539585,86.92,86.903,0.45567172]
[1773511174205,11.59362094,86.919,86.903,0.45567172]
[1773511184012,11.59295915,86.924,86.903,0.45567172]
[1773511184306,11.59295915,86.924,86.886,28.77307912]
[1773511184307,11.59295915,86.924,86.905,0.48148868]
[1773511184695,0.08865655,86.923,86.905,0.48148868]
[1773511185290,3.7539585,86.92,86.905,0.48148868]
[1773511187916,11.50496439,86.919,86.905,0.48148868]
[1773511196120,0.08865655,86.918,86.892,0.47914181]
[1773511196321,11.50496439,86.919,86.892,0.47914181]
[1773511196820,0.08865655,86.918,86.892,0.47914181]
[1773511197807,0.08865655,86.909,86.886,0.47914181]
[1773511199508,11.59494473,86.909,86.886,0.47914181]
[1773511199703,11.50628818,86.909,86.888,0.47914181]
[1773511201308,0.08865655,86.899,86.855,0.47914181]
[1773511201514,0.08865655,86.888,86.857,0.47914181]
[1773511203012,7.34,86.894,86.871,0.47914181]
[1773511205826,7.34,86.894,86.87,15.26535538]
[1773511206035,3.84261505,86.88,86.86,0.47914181]
[1773511206228,0.08865655,86.879,86.86,0.47914181]
[1773511207216,3.7539585,86.87,86.86,0.47914181]
[1773511207932,11.51093988,86.874,86.86,0.47914181]
[1773511209954,0.08865655,86.879,86.834,10.8736748]
[1773511209955,0.46370633,86.869,86.834,10.8736748]
[1773511210252,3.7539585,86.85,86.834,10.8736748]
[1773511210466,0.46370633,86.852,86.834,10.8736748]
[1773511210665,0.46370633,86.857,86.834,10.8736748]
[1773511211764,3.7539585,86.85,86.834,10.8736748]
[1773511211964,3.7539585,86.85,86.835,0.47914181]
[1773511213665,3.76010288,86.85,86.835,0.47914181]
[1773511214262,0.46370633,86.848,86.834,10.8736748]
[1773511214854,0.46370633,86.848,86.834,11.35281661]
[1773511215468,0.46370633,86.848,86.834,10.8736748]
[1773511216858,11.51450251,86.847,86.834,10.8736748]
[1773511217054,0.46370633,86.846,86.834,10.8736748]
[1773511217378,0.46370633,86.846,86.83,0.2]
[1773511219390,0.46370633,86.844,86.82,6.2]
[1773511219554,0.46370633,86.829,86.81,0.1]
[1773511219756,3.76010288,86.82,86.786,0.47914181]
[1773511220059,0.46370633,86.822,86.79,3.76010288]
[1773511221150,3.76010288,86.84,86.81,3.76010288]
[1773511221367,0.47432396,86.839,86.81,3.76010288]
[1773511221592,0.47432396,86.837,86.811,11.51927751]
[1773511221974,0.47432396,86.837,86.812,0.48601334]
[1773511222567,11.98856131,86.849,86.821,0.48601334]
[1773511222876,0.47432396,86.848,86.821,0.48601334]
[1773511223677,0.47432396,86.846,86.821,0.48601334]
[1773511224261,0.47432396,86.839,86.821,0.48601334]
[1773511224764,0.47432396,86.837,86.821,0.48601334]
[1773511225583,0.47432396,86.841,86.821,0.48601334]
[1773511225959,0.47432396,86.839,86.81,3.76010288]
[1773511226164,0.47432396,86.839,86.8,32.56171807]
[1773511227182,0.47432396,86.837,86.801,11.5206046]
[1773511227383,0.47432396,86.837,86.81,3.76010288]
[1773511228169,11.99028508,86.836,86.811,0.15050704]
[1773511228365,0.47432396,86.835,86.811,0.15050704]
[1773511229975,11.51622636,86.834,86.811,0.15050704]
[1773511230369,11.99055032,86.834,86.811,0.15050704]
[1773511230587,0.47432396,86.833,86.811,0.15050704]
[1773511232986,11.51649161,86.832,86.811,0.15050704]
[1773511233191,0.47432396,86.831,86.811,0.15050704]
[1773511234069,0.47432396,86.829,86.802,0.15050704]
[1773511235085,0.47432396,86.819,86.802,0.15050704]
[1773511235676,0.47432396,86.829,86.802,0.15050704]
[1773511236390,0.47432396,86.827,86.802,0.15050704]
[1773511238881,11.51702215,86.828,86.802,0.15050704]
[1773511241994,0.47432396,86.829,86.802,0.15050704]
[1773511243291,0.45128832,86.829,86.802,0.17354268]
[1773511244400,11.51702215,86.828,86.802,0.17354268]
[1773511244783,11.51702215,86.828,86.804,0.17354268]
[1773511245206,0.47432396,86.827,86.804,0.17354268]
[1773511249103,0.47432396,86.825,86.804,0.17354268]
[1773511249600,11.51728744,86.826,86.782,0.17354268]
[1773511249601,0.47432396,86.809,86.782,0.17354268]
[1773511249807,0.47432396,86.829,86.791,0.17354268]
[1773511250801,0.46828767,86.827,86.793,0.17354268]
[1773511252604,0.46828767,86.827,86.801,0.17354268]
[1773511256004,0.45931037,86.825,86.801,0.17354268]
[1773511257392,7.34,86.83,86.801,0.17354268]
[1773511257393,11.51755275,86.824,86.801,0.17354268]
[1773511257684,0.45931037,86.823,86.801,0.17354268]
[1773511259802,11.51781806,86.822,86.801,0.17354268]
[1773511259989,0.45931037,86.821,86.801,0.17354268]
[1773511264307,11.51808339,86.82,86.801,0.17354268]
[1773511264611,0.45931037,86.819,86.801,0.17354268]
[1773511265409,0.45931037,86.819,86.803,0.17354268]
[1773511269291,0.45931037,86.819,86.798,0.17354268]
[1773511272218,0.45931037,86.819,86.801,0.17354268]
[1773511275016,0.45931037,86.819,86.802,11.52047187]
[1773511275216,0.45931037,86.819,86.803,0.17354268]
[1773511282123,0.47500078,86.83,86.805,0.17354268]
[1773511282817,0.47500078,86.83,86.78,7.44]
[1773511282818,0.5,86.829,86.78,7.44]
[1773511283024,0.5,86.829,86.78,11.20196799]
[1773511283225,0.5,86.819,86.78,11.20196799]
[1773511283614,0.5,86.819,86.78,3.86196799]
[1773511284017,0.5,86.817,86.781,40.33140893]
[1773511284526,0.5,86.817,86.79,3.76196799]
[1773511285805,0.5,86.817,86.791,11.52193199]
[1773511296934,0.5,86.817,86.791,40.32676198]
[1773511297137,3.76196799,86.83,86.792,0.47330073]
[1773511297138,11.5177654,86.823,86.792,0.47330073]
[1773511298721,11.5177654,86.823,86.791,40.32676198]
[1773511298722,11.51543067,86.84,86.811,0.47330073]
[1773511299138,0.47500078,86.837,86.812,0.47330073]
[1773511300238,0.47500078,86.835,86.812,0.47330073]
[1773511300836,0.47500078,86.84,86.821,0.47330073]
[1773511301025,11.99043145,86.84,86.821,0.47330073]
[1773511301233,0.47500078,86.839,86.821,0.47330073]
[1773511308542,0.47500078,86.839,86.817,0.47330073]
[1773511313968,0.4974381,86.848,86.821,0.48357086]
[1773511316154,0.4974381,86.848,86.823,0.48357086]
[1773511317160,7.34,86.861,86.816,0.48357086]
[1773511317161,0.4974381,86.846,86.816,0.48357086]
[1773511317456,0.4974381,86.846,86.815,11.51871829]
[1773511317832,0.4974381,86.846,86.816,0.48357086]
[1773511322053,0.4974381,86.846,86.82,3.76196799]
[1773511322462,0.4974381,86.846,86.82,4.24553885]
[1773511322764,0.4974381,86.846,86.821,0.48357086]
[1773511323246,0.4974381,86.86,86.831,0.48357086]
[1773511324174,0.4974381,86.86,86.833,0.48357086]
[1773511327057,0.4974381,86.86,86.834,11.51622636]
[1773511327259,0.4974381,86.86,86.841,0.48357086]
[1773511328765,0.4974381,86.86,86.843,0.48357086]
[1773511332365,0.4974381,86.86,86.839,0.48357086]
[1773511335170,0.4974381,86.86,86.84,11.51543067]
[1773511335550,0.4974381,86.86,86.84,11.99900153]
[1773511336756,0.4974381,86.86,86.84,15.75753737]
[1773511336955,0.4974381,86.86,86.843,0.48357086]
[1773511341782,0.4974381,86.86,86.845,0.45703562]
[1773511345864,0.4974381,86.86,86.841,0.45703562]
[1773511348866,0.47745821,86.864,86.841,0.45703562]
[1773511350287,0.47745821,86.863,86.841,0.45703562]
[1773511351881,11.5125141,86.862,86.84,15.27395873]
[1773511352075,0.47745821,86.861,86.84,15.73099435]
[1773511352272,0.47745821,86.861,86.84,15.27395873]
[1773511352573,0.47745821,86.861,86.841,0.45703562]
[1773511358685,0.47745821,86.861,86.84,15.27395873]
[1773511358874,0.47745821,86.861,86.841,0.45703562]
[1773511366599,0.47745821,86.861,86.84,15.27395873]
[1773511368383,0.47745821,86.861,86.841,0.45703562]
[1773511373506,0.47745821,86.861,86.842,11.96817784]
[1773511374205,0.47745821,86.861,86.842,11.51516547]
[1773511375401,0.47745821,86.861,86.843,0.45301237]
[1773511379392,0.47745821,86.861,86.842,11.51516547]
[1773511395112,0.47745821,86.861,86.842,11.96817784]
[1773511397220,0.47745821,86.861,86.842,11.51516547]
[1773511400621,0.47745821,86.861,86.84,3.75803327]
[1773511408731,0.47745821,86.861,86.834,11.51617298]
[1773511408929,0.4712156,86.859,86.804,0.45945854]
[1773511409266,15.27081245,86.86,86.813,0.45945854]
[1773511409267,0.4712156,86.847,86.813,0.45945854]
[1773511409420,11.51105636,86.873,86.83,3.75803327]
[1773511409615,11.51105636,86.873,86.841,0.45945854]
[1773511410337,7.34,86.878,86.841,0.45945854]
[1773511411416,0.4712156,86.875,86.842,0.45945854]
[1773511416642,0.4712156,86.873,86.842,0.45945854]
[1773511422144,0.4712156,86.871,86.842,0.45945854]
[1773511424047,0.4712156,86.869,86.838,0.45945854]
[1773511428149,11.51171892,86.868,86.838,0.45945854]
[1773511428350,0.4712156,86.867,86.838,0.45945854]
[1773511429155,0.4712156,86.867,86.84,3.75803327]
[1773511429336,0.4712156,86.865,86.84,3.75803327]
[1773511429536,0.4712156,86.865,86.838,0.45945854]
[1773511431151,11.51224903,86.864,86.838,0.45945854]
[1773511431355,0.46283858,86.863,86.838,0.45945854]
[1773511433263,11.5125141,86.862,86.841,0.48212989]
[1773511433442,0.47010638,86.861,86.841,0.48212989]
[1773511437738,0.47010638,86.859,86.841,0.48212989]
[1773511440854,0.47010638,86.857,86.841,0.48212989]
[1773511463562,11.51330938,86.856,86.841,0.48212989]
[1773511463767,11.97300232,86.856,86.841,0.48212989]
[1773511463975,0.45969294,86.856,86.841,0.48212989]
[1773511466571,0.45969294,86.854,86.84,3.75790619]
[1773511466778,0.45969294,86.854,86.841,0.46984615]
[1773511472990,0.45969294,86.858,86.841,0.46984615]
[1773511484791,0.45969294,86.856,86.841,0.46984615]
[1773511489488,0.45969294,86.861,86.841,0.46984615]
[1773511490792,0.45057681,86.859,86.841,0.46984615]
[1773511495992,0.45745142,86.863,86.841,0.46984615]
[1773511497205,11.5125141,86.862,86.841,0.46984615]
[1773511500111,0.45745142,86.861,86.841,0.46984615]
[1773511508615,0.45745142,86.861,86.841,11.98507124]
[1773511508917,0.45745142,86.861,86.842,0.46260439]
[1773511544138,11.51277918,86.86,86.842,0.46260439]
[1773511544325,0.4959924,86.859,86.838,0.48476589]
[1773511545429,0.4959924,86.859,86.841,0.48476589]
[1773511546230,0.4959924,86.857,86.841,0.48476589]
[1773511551540,0.4959924,86.857,86.843,0.45052922]
[1773511554443,0.48917134,86.865,86.845,0.45052922]
[1773511554742,18.85057965,86.877,86.851,0.45052922]
[1773511555738,11.51057965,86.877,86.851,0.45052922]
[1773511556437,11.51057965,86.877,86.852,0.45052922]
[1773511556856,0.48917134,86.876,86.852,0.45052922]
[1773511557759,0.48917134,86.874,86.852,0.45052922]
[1773511558741,0.48917134,86.874,86.854,0.45052922]
[1773511561441,0.48917134,86.872,86.849,0.45052922]
[1773511566361,0.48917134,86.87,86.849,0.45052922]
[1773511569264,11.51158641,86.869,86.849,0.45052922]
[1773511569561,0.48917134,86.868,86.849,0.45052922]
[1773511581766,0.47445719,86.873,86.851,0.46537705]
[1773511584276,11.51118887,86.872,86.851,0.46537705]
[1773511584459,11.98564606,86.872,86.851,0.46537705]
[1773511586581,11.51118887,86.872,86.851,0.46537705]
[1773511587486,0.47445719,86.871,86.851,0.46537705]
[1773511589177,0.47445719,86.871,86.846,11.51453955]
[1773511589476,0.47445719,86.871,86.847,0.46537705]
[1773511589661,0.47445719,86.871,86.849,0.46537705]
[1773511591279,0.47445719,86.871,86.851,0.46537705]
[1773511600379,0.47445719,86.877,86.851,0.46537705]
[1773511602290,11.51065887,86.876,86.851,0.46537705]
[1773511602469,0.47445719,86.875,86.851,0.46537705]
[1773511605397,0.47445719,86.873,86.851,0.46537705]
[1773511623603,6.72335072,86.881,86.861,0.46384006]
[1773511623791,6.32335072,86.881,86.87,3.75791386]
[1773511623996,6.12335072,86.881,86.871,0.46038694]
[1773511624808,0.49493982,86.904,86.873,0.06038694]
[1773511624994,0.49493982,86.918,86.891,0.06038694]
[1773511626098,0.49493982,86.916,86.891,0.06038694]
[1773511632318,0.49493982,86.914,86.891,0.06038694]
[1773511634815,0.49493982,86.912,86.891,0.06038694]
[1773511638333,11.5060234,86.911,86.891,0.06038694]
[1773511638630,0.49493982,86.91,86.891,11.56905872]
[1773511638924,0.49493982,86.91,86.891,0.06038694]
[1773511641311,0.46980653,86.908,86.891,0.06038694]
[1773511643526,11.50655298,86.907,86.891,0.06038694]
[1773511643729,0.46980653,86.906,86.891,0.06038694]
[1773511644127,0.46980653,86.906,86.882,0.06038694]
[1773511647834,0.46980653,86.906,86.89,3.75415715]
[1773511649036,0.46980653,86.906,86.89,3.81454409]
[1773511650525,0.46980653,86.906,86.89,3.75415715]
[1773511651819,0.46980653,86.904,86.89,3.75415715]
[1773511652022,0.46980653,86.904,84.618,231.4868542]
[1773511652023,0.46980653,86.899,86.851,0.06038694]